Cogmind - Beta 14 @@@ ROGUE MODE // 2024.11.04 @ 20:56:49 Player: chromeatic Result: Self-destructed Performance ------------- Evolutions (1) 500 Regions Visited (3) 600 Robots Destroyed (19) 95 Value Destroyed (532) 532 Prototype IDs (0) 0 Alien Tech Used (0) 0 Bonus (0) 0 TOTAL SCORE: 1727 Bonus ------- None Cogmind --------- Core Integrity 226/400 Matter 284/300 Energy 98/100 System Corruption 0% Temperature Cool (0) Movement Core (100) Ox1 Location -9/Mines Parts ------- > --- POWER (1) -------- (None) > --- PROPULSION (3) --- (None) > --- UTILITY (2) ------ Improved Heat Sink Small Storage Unit > --- WEAPON (3) ------- (None) > --- INVENTORY (8) ---- Ion Engine Ion Engine Backup Plating I Peak State ------------ > --- POWER ------------ Light Nuclear Core > --- PROPULSION ------- Wheel Wheel Compact Wheel > --- UTILITY ---------- Improved Heat Sink Small Storage Unit > --- WEAPON ----------- Small Laser Light Assault Rifle Rocket Launcher > --- INVENTORY -------- Ion Engine Ion Engine Backup Plating I EM Pulse Gun [Rating: 14] Favorites ----------- Power Light Nuclear Core Engine Ion Engine Power Core Light Nuclear Core Propulsion Wheel Wheel Wheel Utility Small Storage Unit Device Improved Heat Sink Storage Small Storage Unit Protection Backup Plating I Weapon Light Assault Rifle Energy Gun Small Laser Ballistic Gun Light Assault Rifle Launcher Grenade Launcher Build | -11 -10 -9 -9 ------- Run | Yrd Mat Mat Min Slots Evolved 2 | . . 2 . Power . | . . . . Propulsion 1 | . . 1 . Utility . | . . . . Weapon 1 | . . 1 . Parts Attached 16 | 6 4 4 2 Power 3 | 1 2 . . Engine 2 | 1 1 . . Core 1 | . 1 . . Reactor . | . . . . Propulsion 3 | 2 . 1 . Treads . | . . . . Leg . | . . . . Wheel 3 | 2 . 1 . Hover . | . . . . Flight . | . . . . Utility 2 | 1 . 1 . Device 1 | . . 1 . Storage 1 | 1 . . . Processor . | . . . . Hackware . | . . . . Protection . | . . . . Artifact . | . . . . Weapon 8 | 2 2 2 2 Energy Gun 5 | 2 . 2 1 Energy Cannon . | . . . . Ballistic Gun 1 | . 1 . . Ballistic Cannon . | . . . . Launcher 2 | . 1 . 1 Special Weapon . | . . . . Impact Weapon . | . . . . Slashing Weapon . | . . . . Piercing Weapon . | . . . . Special Melee Weapon . | . . . . Unidentified Prototypes . | . . . . Parts Lost 8 | . . 1 7 Power 1 | . . . 1 Propulsion 3 | . . . 3 Utility . | . . . . Weapon 4 | . . 1 3 Highest Loss Streak 7 | . . 1 7 To Critical Strikes . | . . . . Average Slot Usage (%) 90 | . 98 81 75 Engine 5 | . 9 . . Core 6 | . 4 11 8 Wheel 25 | . 28 23 19 Device 1 | . . 2 11 Storage 12 | . 14 11 11 Protection 9 | . 12 8 . Energy Gun 10 | . 14 5 11 Ballistic Gun 9 | . 9 11 8 Launcher 5 | . 4 7 4 Peak Build Rating 14 | 6 9 13 14 Average Rating 8 | 5 7 9 11 On Entrance 7 | . 6 9 13 Naked Turns . | . . . . Heaviest Build 17 | 13 15 15 17 Greatest Support 36 | 26 26 36 36 Greatest Overweight (x) . | . . . . Average Overweight (x) . | . . . . Largest Inventory Capacity 8 | 8 8 8 8 Average Capacity 7 | 7 8 8 8 Most Carried 5 | 2 5 5 5 Average Carried 3 | . 3 4 3 Final Capacity 8 | 8 8 8 8 Final Carried 5 | 2 5 3 3 Class Distribution -------------------- 93% | Mutant 6% | Scavenger-Gunner Dominant Class ---------------- Mutant | -10/Materials Mutant | -9/Materials Mutant | -9/Mines Resources | -11 -10 -9 -9 ----------- Run | Yrd Mat Mat Min Matter Collected 456 | 260 79 117 . Remotely . | . . . . Salvage Created 537 | . 320 206 11 Parts 31 | . 19 12 . Haulers Intercepted 1 | . . 1 . Recyclers Shooed . | . . . . Parts Field Recycled . | . . . . Retrieved Matter . | . . . . Parts Self-Destructed . | . . . . Prevented . | . . . . Kills | -11 -10 -9 -9 ------- Run | Yrd Mat Mat Min Combat Hostiles Destroyed 21 | . 10 7 4 Guns 11 | . 6 3 2 AOE 10 | . 4 4 2 Classes Destroyed 6 | . 2 3 1 Builder 1 | . . 1 . Hauler 1 | . . 1 . Swarmer 5 | . 3 2 . Grunt 11 | . 7 4 . Sentry 1 | . . 1 . Assembled 4 | . . . 4 Best Kill Streak 6 | . 4 6 4 Combat Bots Only 4 | . 4 4 4 Max Kills in Single Turn 2 | . 2 2 2 Gunslinging . | . . . . Exploded 2 | . 2 2 2 Melee . | . . . . Uniques/NPCs Destroyed . | . . . . Combat | -11 -10 -9 -9 -------- Run | Yrd Mat Mat Min Hostile Shots Fired 87 | . 27 18 42 Missed 33 | . 10 7 16 Damage Taken 849 | . 204 128 517 Core 210 | . 36 40 134 Absorbed by Shields . | . . . . Core Remaining (%) 92 | 100 85 . . Volleys Fired 44 | . 23 13 8 Largest 3 | . 2 3 3 Hottest 100 | . 80 100 93 Shots Fired 84 | . 43 25 16 Gun 72 | . 40 18 14 Cannon . | . . . . Launcher 12 | . 3 7 2 Special . | . . . . Kinetic 30 | . 9 13 8 Thermal 25 | . 17 2 6 Explosive 12 | . 3 7 2 Electromagnetic 17 | . 14 3 . Robot Hit Streak 5 | . 4 5 5 Robot Miss Streak 5 | . 5 3 5 Penetration Max . | . . . . Secondary Targets 1 | . 1 . . Max Gunslinging Chain 1 | . 1 . . Shots Hit Robots 44 | . 22 14 8 Core Hits 45 | . 15 20 10 Critical Kills . | . . . . Critical Parts Destroyed . | . . . . Critical Strikes . | . . . . Melee Attacks . | . . . . Impact . | . . . . Slashing . | . . . . Piercing . | . . . . Sneak Attacks . | . . . . Combat Hostiles . | . . . . Follow-up Attacks . | . . . . Damage Inflicted 1341 | . 356 633 352 Guns 387 | . 210 109 68 Cannons . | . . . . Explosions 954 | . 146 524 284 Melee . | . . . . Ramming . | . . . . Kinetic 160 | . 40 62 58 Thermal 96 | . 64 22 10 Explosive 954 | . 146 524 284 Electromagnetic 131 | . 106 25 . Impact . | . . . . Slashing . | . . . . Piercing . | . . . . Highest Corruption . | . . . . Average Corruption . | . . . . Corruption Purged . | . . . . Corruption Blocked . | . . . . Overload Shots . | . . . . Overflow Damage 29 | . . 10 19 Projectiles . | . . . . Explosions 29 | . . 10 19 Melee . | . . . . Knockbacks . | . . . . Impact . | . . . . Kinetic . | . . . . Secondary . | . . . . Self-Inflicted Damage 37 | . 11 . 26 Shots 2 | . 1 . 1 Rammed . | . . . . Targets Rammed . | . . . . Kicked . | . . . . Crushed . | . . . . Highest Temperature 247 | . 247 43 15 Average Temperature 68 | . 80 22 11 Received Heat Transfer 244 | . 90 54 100 Siege Activations . | . . . . Robots Corrupted . | . . . . Combat Hostiles . | . . . . Parts Fried . | . . . . Impact Corruptions . | . . . . Robots Melted . | . . . . Combat Hostiles . | . . . . Parts Melted . | . . . . Heat Transferred 225 | . 150 50 25 Parts Sabotaged . | . . . . Parts Stolen . | . . . . Parts Stripped . | . . . . Power Chain Reactions . | . . . . Alert | -11 -10 -9 -9 ------- Run | Yrd Mat Mat Min Peak Influence 369 | . 369 335 144 Initial 130 | . . 103 130 Average 171 | . 195 218 120 Maximum Alert Level 1 | . 1 1 . Low Security (%) 58 | 100 44 52 100 Level 1 41 | . 55 47 . Level 2 . | . . . . Level 3 . | . . . . Level 4 . | . . . . Level 5 . | . . . . High Security . | . . . . Max Security . | . . . . Squads Dispatched 6 | . 4 2 . Investigation 2 | . 1 1 . Extermination . | . . . . Reinforcement 4 | . 3 1 . Assault . | . . . . Garrison . | . . . . Intercept . | . . . . Searches Triggered . | . . . . Construction Impeded . | . . . . Haulers Reinforced . | . . . . Active Scanning Responses . | . . . . Cargo Convoy Interrupts . | . . . . Stealth | -11 -10 -9 -9 --------- Run | Yrd Mat Mat Min Distress Signals 2 | . 1 1 . Communications Jammed . | . . . . Distress Signals . | . . . . Times Spotted 41 | . 17 13 11 Peak Tracking Total 12 | . 4 6 12 Tactical Retreats 3 | . 2 . 1 Traps | -11 -10 -9 -9 ------- Run | Yrd Mat Mat Min Traps Triggered . | . . . . Indirectly . | . . . . Trap Hack Attempts . | . . . . Triggered . | . . . . Disarmed . | . . . . Reprogrammed . | . . . . Reused . | . . . . Traps Extracted . | . . . . Installed . | . . . . Triggered . | . . . . Machines | -11 -10 -9 -9 ---------- Run | Yrd Mat Mat Min Machines Disabled 3 | . 1 2 . Max in Single Turn 1 | . 1 1 . Machines Repaired . | . . . . Machines Dismantled . | . . . . Machines Sabotaged . | . . . . Overloaded Fab Kills . | . . . . Hacking | -11 -10 -9 -9 --------- Run | Yrd Mat Mat Min Machines Accessed 6 | . 5 1 . Terminals 4 | . 3 1 . Fabricators . | . . . . Repair Stations 1 | . 1 . . Recycling Units 1 | . 1 . . Scanalyzers . | . . . . Garrison Access . | . . . . Total Hacks 16 | . 15 1 . Successful 12 | . 12 . . Failed 4 | . 3 1 . Catastrophic . | . . . . Database Lockouts . | . . . . Manual . | . . . . Terminals 7 | . 6 1 . Fabricators . | . . . . Repair Stations 3 | . 3 . . Recycling Units 6 | . 6 . . Scanalyzers . | . . . . Garrison Access . | . . . . Terminal Hacks 5 | . 5 . . Record 1 | . 1 . . Alert Level 2 | . 2 . . Unreport Threat 1 | . 1 . . Locate Traps 1 | . 1 . . Fabricator Hacks . | . . . . Repair Station Hacks 2 | . 2 . . Scan Component 1 | . 1 . . Refit 1 | . 1 . . Recycling Unit Hacks 5 | . 5 . . Recycle Component 1 | . 1 . . Process 1 | . 1 . . Report Inventory 2 | . 2 . . Retrieve Components 1 | . 1 . . Scanalyzer . | . . . . Garrison Access Hacks . | . . . . Unauthorized Hacks . | . . . . Terminals . | . . . . Fabricators . | . . . . Repair Stations . | . . . . Recycling Units . | . . . . Scanalyzers . | . . . . Garrison Access . | . . . . Data Cores Recovered . | . . . . Used . | . . . . Hacking Detections 5 | . 4 1 . Full Trace Events 1 | . 1 . . Feedback Events . | . . . . Feedback Blocked . | . . . . Robot Schematics Acquired . | . . . . Robots Built . | . . . . Authchips . | . . . . Time . | . . . . Total Robot Build Rating . | . . . . Part Schematics Acquired . | . . . . Parts Built . | . . . . Authchips . | . . . . Time . | . . . . Total Part Build Rating . | . . . . Parts Repaired . | . . . . Time . | . . . . Parts Recycled 1 | . 1 . . Recycled Matter 35 | . 35 . . Retrieved Matter . | . . . . Retrieved Components . | . . . . Parts Scanalyzed . | . . . . Part Schematics Acquired . | . . . . Parts Damaged . | . . . . Bothacking | -11 -10 -9 -9 ------------ Run | Yrd Mat Mat Min Used RIF Installer . | . . . . Robots Hacked . | . . . . Non-combat . | . . . . Combat . | . . . . Robot Hacks Applied . | . . . . Relay Couplers Released . | . . . . Fabnet Peak Effective % . | . . . . Robots Rewired . | . . . . Allies Hacked . | . . . . Hacks Repelled . | . . . . Allies | -11 -10 -9 -9 -------- Run | Yrd Mat Mat Min Total Allies . | . . . . Largest Group . | . . . . Highest-Rated Group . | . . . . Highest-Rated Ally . | . . . . Total Orders . | . . . . Ally Attacks . | . . . . Total Damage . | . . . . Kills . | . . . . Allies Corrupted . | . . . . Allies Melted . | . . . . Intel | -11 -10 -9 -9 ------- Run | Yrd Mat Mat Min Robot Analysis Total . | . . . . Derelict Logs Recovered 1 | . . . 1 Drone Launches . | . . . . Drone Recoveries . | . . . . Exploration | -11 -10 -9 -9 ------------- Run | Yrd Mat Mat Min Turns Passed 600 | 76 303 171 50 Spaces Moved 494 | 75 248 144 27 Core 5 | 5 . . . Treads . | . . . . Legs . | . . . . Wheels 489 | 70 248 144 27 Hover . | . . . . Flight . | . . . . Fastest Speed 50 | 50 90 86 86 Average Speed 89 | 87 90 89 88 Slowest Speed 100 | 100 90 90 100 Overloaded Moves . | . . . . Propulsion Burnouts . | . . . . Robots Hopped . | . . . . Cave-ins Triggered . | . . . . Exploration Rate (%) 19 | 4 51 17 7 Regions Visited 3 Branch Regions 1 Pre-discovered Areas 1 | . . . 1 Known Exits Taken . | . . . . Unknown Exits Taken 3 | 1 1 1 . Scrap Searched . | . . . . Spaces Dug . | . . . . Terrain Destroyed 46 | . 17 14 15 Melee . | . . . . Projectile . | . . . . AOE 46 | . 17 14 15 Terrain Rammed . | . . . . Walls Destroyed . | . . . . Machines Disabled . | . . . . Actions | -11 -10 -9 -9 --------- Run | Yrd Mat Mat Min Total 570 | 82 284 164 40 Wait 11 | . 6 4 1 Move 491 | 74 247 143 27 Hop . | . . . . Pick Up 7 | 2 4 . 1 Fast Attach 7 | 6 . 1 . Attach 4 | . . 2 2 Detach 1 | . . . 1 Swap 5 | . 4 1 . Drop . | . . . . Fire 44 | . 23 13 8 Melee . | . . . . Ram . | . . . . Kick . | . . . . Crush . | . . . . Escape Stasis . | . . . . Rewire . | . . . . Trap . | . . . . Miscellaneous . | . . . . Route ------- -11/Scrapyard -10/Materials -9/Materials -9/Mines History --------- Turn | Location | Event 19 | -11/Scrapyard | Discovered new exit (range 15) 77 | -11/Scrapyard | Entered Materials 286 | -10/Materials | Discovered new exit (range 14) 316 | -10/Materials | Build established: Mutant 380 | -10/Materials | Entered another Materials area 380 | -9/Materials | Evolved 2 slots: Propulsion x1, Weapon x1 421 | -9/Materials | Discovered new exit (range 13) 551 | -9/Materials | Entered Mines 558 | -9/Mines | Assembled infested the area 558 | -9/Mines | Received a Rocket Launcher from a helpful Derelict 601 | -9/Mines | Self-destructed Last Messages --------------- laser wimps, I say!" 00558_ ALERT: Infestation in the mines, dispatching Demolisher response squad. 00558_ TV-Q4H(g): "Would you like a rocket launcher? I know I would if I were you, so I'm going to lend you mine." 00558_ TV-Q4H(g) slips back into the shadows. 00560_ Acquired Rocket Launcher. 00565_ Acquired derelict log, extracted data. World map updated: -10/Materials. 00576_ Destroyed Asb. F-torch. 00578_ Wheel destroyed. 00581_ Rocket Launcher destroyed. 00581_ as-27546 destroyed. 00582_ Wheel destroyed. 00587_ as-35212 destroyed. 00591_ Lgt. Nuclear Core destroyed. 00593_ Sml. Laser destroyed. 00597_ EM Pulse Gun severed. 00599_ Lgt. Assault Rifle destroyed. 00599_ Com. Wheel destroyed. Map ----- +----------------------------------------------------+ | | | | | | | | | | | | | | | | | | | | | | | ?????????????????????????????????? | | ?????????????????????????????????? | | ?????????????????????????????????? | | ?????????????????????????????????? | | ?????????????????????????????????? | | ?????????????????????????????????? | | ?????????????????????????????????? | | ???###???????????????????????????? | | ??## #####??????????????????????? | | ??# ##?????????????????????? | | ??# #?????????????????????? | | ???# ##?????????????????????? | | ???### ##??????????????????????? | | ?????# #####????????????????????? | | ?????# a@a #????????????????????? | | ?????#a ### #????????????????????? | | ?????# #?? ##???????????????????? | | ?????# ### ###?????????????????? | | ?????# ## #?????????????????? | | ?????# #### ???????? | | ?????# ???????? | | ?????# #???????????? | | ?????### #####???????????? | | ???????#### #???????????????? | | ???????????% ####???????????????? | | ???????????? #??????????????????? | | ????????????###??????????????????? | | ?????????????????????????????????? | | ?????????????????????????????????? | | ?????????????????????????????????? | | ?????????????????????????????????? | | ?????????????????????????????????? | | ?????????????????????????????????? | | ?????????????????????????????????? | | ?????????????????????????????????? | | ?????????????????????????????????? | | ?????????????????????????????????? | | ?????????????????????????????????? | | ?????????????????????????????????? | +----------------------------------------------------+ Best States ------------- Heat Dissipation 42 Energy Generation 14 Energy Capacity 250 Matter Stores 300 Matter Capacity 300 Sight Range 16 Terrain Scan Density 10 Armor Coverage 80 Evasion (%) 42 Item Schematics ----------------- None Robot Schematics ------------------ None Fabricated ------------ Nothing Alien Tech Used ----------------- None Achievements -------------- Everything Is Under Control Challenges ------------ None Game ------ Seed DefenseSmartbombBarrier Manual? 0 Play Time 00:20:47 Cumulative 1.1 hours Start 2024.11.04 @ 20:37:35 End 2024.11.04 @ 20:56:49 Sessions 1 Manual Loads 0 Difficulty Rogue Special Mode None Game No. 2 Rogue 2 Adventurer 0 Explorer 0 Win Type - Total 0 Types 0/0/0/0/0/0/0/0/0 Lore% 0 Gallery% 3 Achievement% 4 Wizard Run 0 Options --------- Layout 1 ASCII 0 Keyboard 0 Movement Numpad Keybinds 0 Fullscreen 2 Font 32/SmallcapsGlow Map View 77x35 Zoom Use 0% Tactical HUD 1 Map Filters NONE Filters NONE Steam 1 RUN: 226367dc-cd66-40c0-8d5a-fc36ab9daab2